bitfinex-derivatives/quotes_SOLF0:USTF0_20250714
["timestamp","ask_amount","ask_price","bid_price","bid_amount"]
[1752513384923,3.41,164.73,164.65,3.59]
[1752513385117,3.41,164.7,164.65,3.59]
[1752513385323,4.53505091,164.71,164.69,6.0714]
[1752513385629,175.76,164.7,164.66,3.59]
[1752513385832,7.94505091,164.68,164.67,3.59]
[1752513386030,7.94505091,164.68,164.67,9.6625]
[1752513386526,3.41,164.68,164.67,6.0725]
[1752513386718,7.94505091,164.68,164.67,6.0725]
[1752513386919,7.94505091,164.68,164.67,9.6625]
[1752513387721,7.94505091,164.68,164.55,5.07536058]
[1752513387722,3.41,164.67,164.62,3.59]
[1752513387924,4.53505091,164.65,164.62,3.59]
[1752513388125,7.94505091,164.65,164.62,3.59]
[1752513388921,4.53505091,164.65,164.64,9.6636]
[1752513389125,3.41,164.67,164.54,3.59]
[1752513389328,183.72505091,164.67,164.6,3.59]
[1752513389530,7.94505091,164.67,164.6,3.59]
[1752513389726,4.53505091,164.67,164.6,3.59]
[1752513389930,4.53505091,164.67,164.63,3.59]
[1752513390124,3.41,164.71,164.62,0.04160246]
[1752513390424,183.72505091,164.7,164.63,3.59]
[1752513390822,180.31505091,164.7,164.63,3.59]
[1752513391027,3.59,164.69,164.63,3.59]
[1752513391524,4.53505091,164.68,164.59,4.53505091]
[1752513391725,3.59,164.67,164.65,3.6]
[1752513391926,4.53505091,164.68,164.67,6.0724]
[1752513392126,8.12505091,164.68,164.67,9.6724]
[1752513392321,8.12505091,164.68,164.67,6.0724]
[1752513394326,3.59,164.67,164.66,9.6728]
[1752513394824,3.59,164.67,164.65,6.0732]
[1752513395026,8.12505091,164.66,164.65,9.6732]
[1752513395423,3.59,164.65,164.59,3.6]
[1752513395619,4.53505091,164.64,164.59,3.6]
[1752513397130,4.53505091,164.64,164.63,6.0739]
[1752513397329,8.12505091,164.64,164.63,9.6739]
[1752513397928,8.12505091,164.66,164.65,9.673]
[1752513398427,8.12505091,164.66,164.54,3.6]
[1752513398428,3.59,164.65,164.54,3.6]
[1752513398629,8.12505091,164.64,164.54,3.6]
[1752513398832,8.12505091,164.62,164.57,3.6]
[1752513399028,3.59,164.61,164.6,6.0749]
[1752513399526,4.53505091,164.62,164.61,6.0747]
[1752513399726,4.53505091,164.62,164.61,3.6]
[1752513399946,8.12505091,164.62,164.61,3.6]
[1752513400126,8.12505091,164.62,164.54,4.53505091]
[1752513400127,8.12505091,164.62,164.55,3.6]
[1752513400430,3.59,164.61,164.55,3.6]
[1752513401428,3.59,164.59,164.55,3.6]
[1752513401632,8.12505091,164.58,164.55,3.6]
[1752513402028,4.53505091,164.58,164.55,3.6]
[1752513402326,8.12505091,164.58,164.57,3.6]
[1752513404831,3.59,164.58,164.57,3.6]
[1752513405027,4.53505091,164.59,164.53,3.6]
[1752513405233,3.59,164.58,164.53,3.6]
[1752513405428,3.59,164.57,164.53,3.6]
[1752513405631,8.12505091,164.57,164.56,3.6]
[1752513405833,8.12505091,164.57,164.55,6.0767]
[1752513406038,3.59,164.56,164.55,9.6767]
[1752513406630,4.53505091,164.57,164.56,6.0764]
[1752513406830,3.59,164.6,164.56,3.6]
[1752513407047,3.59,164.62,164.56,3.6]
[1752513407240,6.0744,164.62,164.6,3.6]
[1752513407544,3.59,164.61,164.59,9.6752]
[1752513407836,3.59,164.61,164.6,6.075]
[1752513408034,3.59,164.61,164.6,9.675]
[1752513408236,3.59,164.6,164.58,3.6]
[1752513408432,4.53505091,164.62,164.57,0.04482506]
[1752513408633,3.59,164.6,164.59,3.6]
[1752513409538,3.59,164.6,164.59,9.6752]
[1752513409735,3.59,164.61,164.6,3.6]
[1752513410032,4.53505091,164.62,164.61,9.6747]
[1752513410033,175.86,164.62,164.61,9.6747]
[1752513410534,3.59,164.63,164.62,3.6]
[1752513410733,179.45,164.64,164.63,3.6]
[1752513411339,179.45,164.64,164.63,9.6739]
[1752513412636,175.86,164.64,164.63,9.6739]
[1752513413636,22.74505091,164.72,164.58,4.53505091]
[1752513413842,3.59,164.67,164.64,3.6]
[1752513414039,3.59,164.67,164.6,4.53505091]
[1752513414040,3.59,164.67,164.61,3.6]
[1752513414240,6.0726,164.67,164.64,6.0733]
[1752513414542,3.59,164.66,164.65,3.6]
[1752513415942,179.45,164.69,164.65,3.6]
[1752513416451,9.6619,164.69,164.67,3.6]
[1752513416643,179.45,164.69,164.67,3.6]
[1752513416843,175.86,164.69,164.67,9.6722]
[1752513417148,179.45,164.69,164.68,3.6]
[1752513418244,175.86,164.69,164.68,3.6]
[1752513418444,179.45,164.69,164.68,3.6]
[1752513419048,3.59,164.71,164.69,3.6]
[1752513419248,3.59,164.71,164.7,3.6]
[1752513419542,179.43,164.71,164.7,3.6]
[1752513419751,185.5012,164.71,164.7,3.6]
[1752513420248,6.0715,164.7,164.64,4.53505091]
[1752513420448,3.45,164.69,164.63,3.31]
[1752513420642,3.45,164.67,164.63,3.31]
[1752513420949,3.45,164.66,164.63,3.31]
[1752513421147,7.98505091,164.66,164.64,3.31]
[1752513421348,3.45,164.65,164.64,3.31]
[1752513422549,9.5232,164.65,164.64,3.31]
[1752513422748,3.45,164.65,164.64,3.31]
[1752513423139,4.53505091,164.66,164.65,3.31]
[1752513423344,175.82,164.67,164.65,3.31]
[1752513423648,7.98505091,164.68,164.65,3.31]
[1752513423846,3.45,164.67,164.66,3.31]
[1752513424851,9.5227,164.67,164.66,3.31]
[1752513426752,181.9327,164.67,164.66,3.31]
[1752513427552,10.60725091,164.68,164.66,3.31]
[1752513427753,186.44725091,164.68,164.66,3.31]
[1752513429456,189.89725091,164.68,164.67,3.31]
[1752513430757,180.37505091,164.68,164.67,3.31]
[1752513431158,7.98505091,164.68,164.67,3.31]
[1752513431352,14.05715091,164.68,164.67,3.31]
[1752513432862,189.85715091,164.68,164.67,3.31]
[1752513433266,14.05715091,164.68,164.67,3.31]
[1752513433467,189.85715091,164.68,164.67,3.31]
[1752513433768,14.05715091,164.68,164.67,3.31]
[1752513435364,189.85715091,164.68,164.67,3.31]
[1752513435864,14.05715091,164.68,164.67,3.31]
[1752513436061,189.85715091,164.68,164.67,3.31]
[1752513436967,183.78505091,164.68,164.67,3.31]
[1752513438166,183.78505091,164.68,164.67,9.3824]
[1752513438366,180.33505091,164.68,164.67,3.31]
[1752513438661,189.85715091,164.68,164.67,3.31]
[1752513439262,183.78505091,164.68,164.67,3.31]
[1752513439970,175.8,164.69,164.68,3.31]
[1752513440567,179.25,164.69,164.68,3.31]
[1752513440967,175.8,164.69,164.68,3.31]
[1752513441366,175.8,164.69,164.68,6.0721]
[1752513441667,175.8,164.69,164.68,3.31]
[1752513442068,183.78505091,164.69,164.68,3.31]
[1752513443170,183.78505091,164.69,164.68,9.3821]
[1752513444671,180.33505091,164.69,164.68,9.3821]
[1752513445069,175.78,164.7,164.69,9.3817]
[1752513445373,175.78,164.7,164.69,3.31]
[1752513445573,185.3013,164.7,164.69,3.31]
[1752513445971,9.5213,164.7,164.69,3.31]
[1752513446167,185.3013,164.7,164.69,3.31]
[1752513447273,9.5213,164.7,164.69,3.31]
[1752513447476,185.3013,164.7,164.69,3.31]
[1752513448274,9.5213,164.7,164.69,3.31]
[1752513448575,185.3013,164.7,164.69,3.31]
[1752513448779,179.23,164.7,164.69,9.3817]
[1752513448977,175.78,164.7,164.69,9.3817]
[1752513449174,175.78,164.7,164.69,3.31]
[1752513449476,179.23,164.7,164.69,3.31]
[1752513450269,179.23,164.7,164.69,9.3817]
[1752513450683,179.23,164.7,164.69,3.31]
[1752513451876,175.78,164.7,164.69,3.31]
[1752513452272,175.78,164.7,164.69,9.3817]
[1752513453785,179.37,164.7,164.69,3.31]
[1752513454180,185.4413,164.7,164.69,3.31]
[1752513454373,531.62769694,164.75,164.72,6.0706]
[1752513454374,5.09671044,164.73,164.72,6.0706]
[1752513454578,5.09671044,164.74,164.72,3.34]
[1752513454780,4.53505091,164.77,164.72,3.34]
[1752513454781,5.09671044,164.75,164.72,3.34]
[1752513454976,5.09671044,164.75,164.74,9.4099]
[1752513455180,5.10646339,164.77,164.74,3.34]
[1752513455375,266.57720054,164.79,164.74,3.34]
[1752513455603,5.10646339,164.8,164.75,4.53505091]
[1752513455882,5.10646339,164.82,164.78,3.34]
[1752513456080,13.2315143,164.83,164.82,3.34]
[1752513456279,4.53505091,164.84,164.82,6.28681367]
[1752513456476,8.12505091,164.84,164.83,6.2827335]
[1752513456681,183.90505091,164.84,164.83,6.2827335]
[1752513456876,189.97125091,164.84,164.83,2.9427335]
[1752513458180,9.6562,164.84,164.83,8.99499197]
[1752513458486,3.59,164.85,164.84,3.34]
[1752513458685,179.35,164.86,164.85,3.34]
[1752513458981,179.35,164.86,164.85,12.33499197]
[1752513459776,9.6554,164.86,164.85,12.33499197]
[1752513459975,185.4154,164.86,164.85,12.33499197]
[1752513460182,9.6554,164.86,164.85,12.33499197]
[1752513460383,185.4154,164.86,164.85,12.33499197]
[1752513460585,9.6554,164.86,164.85,12.33499197]
[1752513460886,185.4154,164.86,164.85,12.33499197]
[1752513461483,9.6554,164.86,164.85,12.33499197]
[1752513461679,185.3754,164.86,164.85,12.33499197]
[1752513461881,179.31,164.86,164.85,12.33499197]
[1752513462081,175.72,164.86,164.85,8.99499197]
[1752513462485,12.1256,164.94,164.85,8.99499197]
[1752513462486,3.59,164.91,164.85,8.99499197]
[1752513462685,175.7,164.9,164.86,12.33499197]
[1752513462886,175.7,164.9,164.88,3.34]
[1752513463086,175.7,164.9,164.86,3.34]
[1752513463287,3.59,164.89,164.88,3.34]
[1752513463482,3.59,164.89,164.88,12.31683939]
[1752513463694,6.0646,164.89,164.88,12.31613706]
[1752513465999,9.6546,164.89,164.88,12.31613706]
[1752513466196,9.6551,164.87,164.86,3.38007372]
[1752513466391,3.59,164.87,164.86,3.38007372]
[1752513466592,3.59,164.89,164.87,3.34]
[1752513466788,4.53505091,164.9,164.87,3.34]
[1752513467023,175.64,164.89,164.87,3.34]
[1752513467192,84.51480088,164.96,164.87,3.34]
[1752513467491,6.064,164.91,164.87,3.34]
[1752513467690,181.704,164.91,164.88,6.0646]
[1752513467886,185.294,164.91,164.9,3.34]
[1752513468088,181.704,164.91,164.9,3.34]
[1752513468286,175.64,164.91,164.9,3.34]
[1752513468695,181.7036,164.91,164.9,3.34]
[1752513468889,9.6536,164.91,164.9,3.34]
[1752513469996,9.654,164.9,164.89,0.03951865]
[1752513470190,9.654,164.9,164.89,3.37951865]
[1752513470886,4.53505091,164.91,164.89,0.03951865]
[1752513471200,8.12505091,164.91,164.9,3.34]
[1752513472090,175.6,164.91,164.9,3.34]
[1752513472491,1.0556651,164.92,164.9,9.4037]
[1752513472692,1.0556651,164.92,164.91,3.34]
[1752513473298,175.6,164.93,164.91,3.34]
[1752513473802,175.6,164.94,164.91,3.34]
[1752513474491,175.6,164.94,164.92,6.0632]
[1752513474697,175.6,164.94,164.93,3.34]
[1752513474897,4.64552101,164.95,164.89,4.57456956]
[1752513475092,4.64552101,164.95,164.94,3.34]
[1752513475502,176.63552101,164.95,164.94,3.34]
[1752513475798,180.22552101,164.95,164.94,3.34]
[1752513475993,4.64552101,164.95,164.94,3.34]
[1752513476202,3.59,164.98,164.94,3.34]
[1752513476496,179.17,164.98,164.94,3.34]
[1752513476794,179.17,164.98,164.97,9.4014]
[1752513477399,3.59,164.98,164.97,3.34]
[1752513477599,179.15,164.98,164.97,3.34]
[1752513478300,185.211,164.98,164.97,3.34]
[1752513478499,185.211,164.98,164.87,12.13]
[1752513478500,3.59,164.97,164.96,3.34]
[1752513478802,179.15,164.97,164.96,3.34]
[1752513479296,175.56,164.98,164.97,6.0614]
[1752513479498,179.15,164.98,164.97,9.4014]
[1752513479902,179.15,164.98,164.97,3.34]
[1752513480295,175.56,164.98,164.95,3.34]
[1752513480598,175.56,164.98,164.91,3.42]
[1752513480599,3.59,164.97,164.91,3.42]
[1752513481001,3.51,164.96,164.95,3.42]
[1752513481201,3.51,164.95,164.86,4.53505091]
[1752513481401,3.51,164.93,164.86,4.53505091]
[1752513481611,179.15,164.93,164.92,3.42]
[1752513482104,175.64,164.93,164.92,3.42]
[1752513482500,185.2129,164.93,164.86,4.53505091]
[1752513482804,3.51,164.91,164.84,4.53505091]
[1752513483098,10.59835091,164.92,164.89,6.0641]
[1752513483304,3.51,164.9,164.89,6.0641]
[1752513483694,4.53505091,164.92,164.9,6.0639]
[1752513483899,3.51,164.91,164.9,6.0639]
[1752513484105,179.15,164.93,164.86,4.53505091]
[1752513484398,3.51,164.92,164.9,6.0638]
[1752513484604,3.51,164.92,164.91,3.42]
[1752513485304,175.64,164.93,164.91,3.42]
[1752513485507,179.15,164.93,164.92,3.42]
[1752513487509,185.3523,164.95,164.92,9.4832]
[1752513487700,175.78,164.95,164.92,6.0632]
[1752513487899,3.51,164.95,164.88,4.53505091]
[1752513488101,3.51,164.95,164.94,3.42]
[1752513489202,9.5721,164.95,164.88,4.53505091]
[1752513489404,3.51,164.95,164.89,3.42]
[1752513489802,6.063,164.93,164.9,6.0637]
[1752513490002,3.51,164.93,164.91,3.42]
[1752513490405,9.5731,164.93,164.91,3.42]
[1752513490605,9.5731,164.93,164.9,6.0638]
[1752513490809,9.5731,164.93,164.92,3.42]
[1752513492000,9.5739,164.91,164.87,3.42]
[1752513492202,3.51,164.9,164.87,3.42]
[1752513492514,3.51,164.9,164.88,6.0646]
[1752513492702,3.51,164.9,164.89,3.42]
[1752513492900,3.51,164.9,164.87,3.42]
[1752513492901,8.04505091,164.9,164.87,3.42]
[1752513493202,3.51,164.89,164.88,3.42]
[1752513493705,9.5745,164.89,164.88,3.42]
[1752513494300,3.51,164.89,164.88,3.42]
[1752513495012,9.5743,164.89,164.88,3.42]
[1752513495706,6.0648,164.88,164.85,6.0656]
[1752513495931,9.5748,164.88,164.87,3.42]
[1752513497516,3.51,164.88,164.87,3.42]
[1752513498219,9.5751,164.88,164.85,3.42]
[1752513498414,3.51,164.87,164.86,3.42]
[1752513498916,9.5751,164.87,164.86,3.42]
[1752513499914,3.51,164.85,164.83,3.42]
[1752513500115,4.53505091,164.88,164.8,3.42]
[1752513500116,3.51,164.87,164.8,3.42]
[1752513500313,4.53505091,164.86,164.8,3.42]
[1752513500507,9.5758,164.85,164.8,3.42]
[1752513500713,3.51,164.84,164.8,3.42]
[1752513500910,3.51,164.82,164.81,3.42]
[1752513502317,3.51,164.82,164.8,9.4873]
[1752513502523,3.51,164.81,164.8,3.42]
[1752513503512,3.51,164.81,164.78,9.4883]
[1752513503711,3.51,164.81,164.78,3.42]
[1752513504217,3.51,164.81,164.78,9.4881]
[1752513504415,3.51,164.81,164.78,3.42]
[1752513504615,4.53505091,164.8,164.78,3.42]
[1752513504920,3.51,164.79,164.78,3.42]
[1752513505420,3.51,164.79,164.78,9.4884]
[1752513505822,3.51,164.81,164.78,3.42]
[1752513507114,4.53505091,164.83,164.76,4.53505091]
[1752513507320,3.51,164.83,164.8,3.42]
[1752513507719,3.51,164.83,164.82,9.4869]
[1752513508818,4.53505091,164.83,164.81,6.067]
[1752513509019,3.51,164.82,164.81,6.067]
[1752513509218,3.51,164.82,164.81,9.487]
[1752513509417,3.51,164.82,164.81,6.067]
[1752513509625,3.51,164.82,164.8,6.0674]
[1752513509925,3.51,164.79,164.76,3.42]
[1752513510114,3.51,164.79,164.78,6.0682]
[1752513510320,3.51,164.79,164.78,9.4882]
[1752513510922,8.11505091,164.82,164.81,9.6773]
[1752513511113,3.58,164.82,164.81,9.6773]
[1752513511417,3.58,164.84,164.83,9.6765]
[1752513511626,179.36,164.84,164.83,9.6765]
[1752513512120,3.58,164.84,164.83,9.6765]
[1752513512324,179.42,164.84,164.83,9.6765]
[1752513512528,179.42,164.84,164.83,3.61]
[1752513513618,175.84,164.84,164.82,6.0668]
[1752513513919,3.58,164.83,164.81,6.0671]
[1752513514124,3.58,164.83,164.81,9.6771]
[1752513514325,175.82,164.83,164.81,9.6771]
[1752513514524,3.58,164.82,164.81,9.6771]
[1752513516322,3.58,164.82,164.81,6.0671]
[1752513516522,3.58,164.82,164.81,9.6771]
[1752513518824,3.58,164.82,164.79,3.61]
[1752513519427,3.58,164.81,164.79,9.6778]
[1752513519626,3.58,164.8,164.77,3.61]
[1752513519925,3.58,164.8,164.78,9.6782]
[1752513520423,3.58,164.79,164.78,9.6782]
[1752513521127,3.58,164.81,164.78,3.61]
[1752513521329,179.26,164.81,164.78,3.61]
[1752513521626,179.26,164.81,164.8,6.0676]
[1752513521928,179.26,164.81,164.8,9.6776]
[1752513522126,179.26,164.81,164.8,6.0676]
[1752513522722,3.58,164.8,164.79,9.6779]
[1752513523627,3.58,164.81,164.75,4.53505091]
[1752513523818,3.58,164.81,164.8,3.61]
[1752513524825,3.58,164.81,164.8,9.6776]
[1752513528235,3.58,164.83,164.81,3.61]
[1752513528736,3.58,164.83,164.78,3.61]
[1752513529135,3.58,164.83,164.82,9.6769]
[1752513531234,3.58,164.83,164.82,6.0669]
[1752513534140,179.22,164.83,164.82,6.0669]
[1752513534842,3.58,164.83,164.82,6.0669]
[1752513535144,179.22,164.83,164.82,6.0669]
[1752513535342,3.58,164.83,164.82,6.0669]
[1752513535532,179.22,164.83,164.82,6.0669]
[1752513537440,179.22,164.83,164.82,9.6769]
[1752513541043,3.58,164.83,164.82,9.6769]
[1752513541242,179.22,164.83,164.82,9.6769]
[1752513542245,3.58,164.83,164.82,9.6769]
[1752513542447,179.03,164.84,164.83,9.5862]
[1752513543845,179.03,164.84,164.83,3.52]
[1752513544046,3.39,164.84,164.83,3.52]
[1752513544449,179.03,164.84,164.83,3.52]
[1752513544646,179.03,164.84,164.76,5.03334415]
[1752513544647,3.39,164.82,164.81,3.52]
[1752513545148,3.39,164.81,164.77,3.52]
[1752513546246,3.39,164.81,164.79,6.0678]
[1752513546446,3.39,164.81,164.79,9.5878]
[1752513547353,3.39,164.8,164.78,9.5883]
[1752513548456,3.39,164.8,164.78,6.0683]
[1752513548751,3.39,164.8,164.79,9.588]
[1752513551352,3.39,164.8,164.75,3.52]
[1752513552052,3.39,164.8,164.78,6.0682]
[1752513552254,9.4577,164.8,164.78,3.52]
[1752513552452,3.39,164.79,164.78,3.52]
[1752513553757,3.39,164.81,164.78,3.52]
[1752513553956,9.57602301,164.86,164.79,4.53505091]
[1752513554177,3.39,164.84,164.8,3.52]
[1752513554357,3.39,164.84,164.83,6.0665]
[1752513554558,3.39,164.84,164.83,9.5865]
[1752513557661,3.39,164.84,164.82,6.0668]
[1752513557859,3.39,164.84,164.82,9.5868]
[1752513558359,6.0663,164.84,164.82,6.0668]
[1752513558560,3.39,164.82,164.8,3.52]
[1752513558962,4.53505091,164.81,164.76,3.52]
[1752513559162,3.39,164.8,164.76,3.52]
[1752513559461,3.39,164.8,164.78,6.0682]
[1752513559662,3.39,164.8,164.78,9.5882]
[1752513560052,3.39,164.8,164.79,6.068]
[1752513560663,3.39,164.8,164.79,9.588]
[1752513561963,3.39,164.8,164.79,3.52]
[1752513563059,3.39,164.8,164.79,9.588]
[1752513565958,7.92505091,164.82,164.81,3.52]
[1752513566158,183.58505091,164.82,164.81,3.52]
[1752513566567,7.92505091,164.82,164.81,3.52]
[1752513566769,183.58505091,164.82,164.81,3.52]
[1752513566965,3.39,164.82,164.81,3.52]
[1752513567272,3.39,164.84,164.83,9.5865]
[1752513567469,175.66,164.84,164.78,4.53505091]
[1752513567665,3.39,164.78,164.69,6.73485281]
[1752513567865,4.54271702,164.72,164.69,6.73485281]
[1752513568168,4.54271702,164.72,164.64,12.1468]
[1752513568169,7.93271702,164.72,164.71,6.071]
[1752513568369,7.93271702,164.72,164.64,4.54271702]
[1752513568573,4.54371684,164.71,164.7,6.0712]
[1752513569670,4.54371684,164.71,164.7,9.5912]
[1752513572565,4.54371684,164.71,164.69,0.03918601]
[1752513572566,176.62,164.74,164.73,9.4102]
[1752513572775,181.16371684,164.74,164.73,9.4102]
[1752513573073,184.71371684,164.74,164.73,9.4102]
[1752513573375,4.54371684,164.74,164.73,9.4102]
[1752513573572,8.09371684,164.77,164.75,3.34]
[1752513573876,8.09371684,164.77,164.76,3.34]
[1752513574467,8.09371684,164.77,164.76,9.4091]
[1752513574773,4.54371684,164.77,164.76,3.34]
[1752513574985,4.54371684,164.77,164.76,9.4091]
[1752513577579,8.09371684,164.79,164.78,6.0684]
[1752513577783,8.09371684,164.79,164.78,9.4084]
[1752513578079,8.09371684,164.79,164.78,3.34]
[1752513578779,8.09371684,164.79,164.78,9.4084]
[1752513581983,4.54371684,164.79,164.77,6.0686]
[1752513582188,3.55,164.78,164.77,3.34]
[1752513583085,3.55,164.78,164.76,3.34]
[1752513583377,8.09371684,164.77,164.76,3.34]
[1752513585876,3.55,164.76,164.69,3.34]
[1752513586072,4.54371684,164.8,164.69,3.34]
[1752513586073,8.09371684,164.74,164.69,3.34]
[1752513586475,3.55,164.73,164.69,3.34]
[1752513586682,8.09371684,164.74,164.69,3.34]
[1752513587490,4.54371684,164.74,164.73,9.4102]
[1752513589282,8.09371684,164.74,164.73,9.4102]
[1752513589885,8.09371684,164.74,164.73,3.34]
[1752513590692,3.55,164.75,164.73,3.34]
[1752513591089,4.54371684,164.77,164.69,3.34]
[1752513591287,8.09371684,164.77,164.69,3.34]
[1752513591500,8.09371684,164.77,164.7,4.54371684]
[1752513591687,8.09371684,164.77,164.71,3.34]
[1752513592182,3.55,164.76,164.71,3.34]
[1752513592387,3.55,164.8,164.73,3.34]
[1752513592584,3.55,164.8,164.78,6.0682]
[1752513592785,3.55,164.8,164.78,9.4082]
[1752513592990,3.55,164.8,164.78,3.34]
[1752513593490,3.55,164.8,164.79,6.068]
[1752513596490,3.55,164.8,164.79,9.408]
[1752513598387,3.55,164.8,164.79,6.068]
[1752513599283,3.55,164.8,164.78,6.0682]
[1752513599484,3.55,164.8,164.78,9.4082]
[1752513599682,176.2,164.82,164.76,3.34]
[1752513599683,4.54371684,164.79,164.76,3.34]
[1752513599884,3.55,164.76,164.75,3.34]
[1752513600091,3.55,164.76,164.73,3.34]
[1752513600287,3.55,164.76,164.72,3.34]
[1752513600485,3.55,164.76,164.69,4.54371684]
[1752513600791,4.54371684,164.75,164.7,3.56]
[1752513600993,8.07371684,164.75,164.74,6.0699]
[1752513601493,8.07371684,164.75,164.74,9.6299]
[1752513603186,3.53,164.76,164.75,6.0692]
[1752513603392,4.54371684,164.8,164.76,3.56]
[1752513603591,3.53,164.78,164.76,3.56]
[1752513603796,3.53,164.78,164.77,9.6284]
[1752513604994,3.53,164.78,164.76,6.0691]
[1752513605199,3.53,164.78,164.76,9.6291]
[1752513605898,3.53,164.77,164.75,6.0693]
[1752513606094,181.2319554,164.82,164.7,3.56]
[1752513606095,8.07371684,164.76,164.7,3.56]
[1752513606291,3.53,164.75,164.7,3.56]
[1752513606494,3.53,164.75,164.72,3.56]
[1752513606800,6.0689,164.77,164.67,4.54371684]
[1752513606801,4.54371684,164.74,164.67,4.54371684]
[1752513607104,4.54371684,164.72,164.67,3.56]
[1752513607297,3.53,164.71,164.67,3.56]
[1752513608298,3.53,164.71,164.7,6.0713]
[1752513608492,3.53,164.71,164.7,9.6313]
[1752513609198,4.54371684,164.72,164.64,4.54371684]
[1752513609392,3.53,164.71,164.65,3.56]
[1752513609898,3.53,164.71,164.7,9.6313]
[1752513610600,3.53,164.71,164.69,3.56]
[1752513611100,3.53,164.71,164.65,3.56]
[1752513611601,3.53,164.69,164.65,3.56]
[1752513611900,3.53,164.73,164.67,3.56]
[1752513612702,4.54371684,164.76,164.68,4.54371684]
[1752513612898,3.53,164.75,164.73,6.0701]
[1752513613091,3.53,164.75,164.73,9.6301]
[1752513614103,3.53,164.75,164.74,6.0699]
[1752513614300,8.07371684,164.78,164.74,3.56]
[1752513614500,3.53,164.77,164.74,3.56]
[1752513614800,4.54371684,164.78,164.74,3.56]
[1752513615103,4.54371684,164.8,164.74,3.56]
[1752513615294,534.09567224,164.82,164.78,3.56]
[1752513615498,534.09567224,164.82,164.75,3.56]
[1752513615699,3.53,164.81,164.79,6.0678]
[1752513616000,3.53,164.81,164.78,3.56]
[1752513616598,3.53,164.81,164.79,3.56]
[1752513616901,3.53,164.81,164.78,3.56]
[1752513617106,3.53,164.81,164.8,6.0676]
[1752513621804,3.53,164.81,164.78,6.0682]
[1752513622009,3.53,164.79,164.73,3.56]
[1752513622603,3.53,164.79,164.78,6.0684]
[1752513623003,3.53,164.81,164.77,3.56]
[1752513623209,3.53,164.81,164.8,6.0676]
[1752513623711,3.53,164.81,164.7,6.73485281]
[1752513623905,3.53,164.79,164.78,3.56]
[1752513624105,3.53,164.79,164.78,9.6284]
[1752513624506,3.53,164.79,164.72,4.54371684]
[1752513624808,3.53,164.79,164.77,3.56]
[1752513625004,4.54371684,164.78,164.76,3.56]
[1752513625208,3.53,164.77,164.71,3.56]
[1752513625402,4.54371684,164.76,164.71,3.56]
[1752513625601,3.53,164.74,164.71,3.56]
[1752513625913,3.53,164.74,164.73,9.6302]
[1752513626633,3.53,164.74,164.73,3.56]
[1752513627213,3.53,164.74,164.73,9.6302]
[1752513628313,3.53,164.74,164.73,3.56]